Cogmind - Beta 17.1 @@@ ROGUE MODE // 2026.09.15 @ 17:05:20 Player: MolePlayingNice Result: Destroyed by CB-1BF(j) with Overtuned Pulse Rifle Performance ------------- Evolutions (0) 0 Regions Visited (4) 800 Robots Destroyed (63) 315 Value Destroyed (1490) 1490 Prototype IDs (30) 600 Alien Tech Used (0) 0 Bonus (9357) 9357 TOTAL SCORE: 12562 Bonus ------- Follower Combat Kills 687 Prayed to X0-1V1 5000 Major X0-1V1 Interference 3600 Registered with UFD 300 Friendly Fire -230 Cogmind --------- Core Integrity 0/450 Matter 107/300 Energy 99/100 System Corruption 2% Temperature Cool (61) Movement Core (50) Location -9/Scraptown Parts ------- > --- POWER (1) -------- (None) > --- PROPULSION (1) --- (None) > --- UTILITY (2) ------ (None) > --- WEAPON (3) ------- (None) > --- INVENTORY (5) ---- Large Storage Unit Hardened Medium Armor Plating Magnetic Acceleration Cannon Large Botcube Peak State ------------ > --- POWER ------------ Improved Ion Engine > --- PROPULSION ------- Compact Wheel > --- UTILITY ---------- High-capacity Storage Unit Improved Medium Armor Plating > --- WEAPON ----------- Plasma Rifle Coil Gun Magnetic Acceleration Cannon > --- INVENTORY -------- Meta Core Wheel Armored Wheel Disposable Heat Sink Large Storage Unit Experimental Sensor Array Advanced Targeting Computer Advanced Melee Analysis Suite Hardened Medium Armor Plating Beam Cannon Autogun Subdweller Machine Gun EMP Blaster Subdweller Shrapnel Launcher CPS Tube CPS Tube Multitool Scythe Large Botcube [Rating: 31] Favorites ----------- Power Light Ion Engine Engine Light Ion Engine Propulsion Compact Wheel Treads Light Treads Leg Aluminum Leg Wheel Compact Wheel Utility High-capacity Storage Unit Device X0-1V1's Piety Tracker Storage High-capacity Storage Unit Processor Improved Targeting Computer Protection Improved Medium Armor Plating Weapon Beam Cannon Energy Gun Plasma Rifle Energy Cannon Beam Cannon Ballistic Gun Light Assault Rifle Ballistic Cannon Magnetic Acceleration Cannon Launcher Subdweller Shrapnel Launcher Special Weapon CPS Tube Slashing Weapon Scythe Build | -11 -10 -10 -9 -9 ------- Run | Yrd Mat Sub Rec Scr Slots Evolved . | . . . . . Power . | . . . . . Propulsion . | . . . . . Utility . | . . . . . Weapon . | . . . . . Parts Attached 50 | . 8 22 3 17 Power 6 | . . 3 . 3 Engine 6 | . . 3 . 3 Core . | . . . . . Reactor . | . . . . . Propulsion 10 | . 2 5 2 1 Treads 2 | . 2 . . . Leg 1 | . . 1 . . Wheel 7 | . . 4 2 1 Hover . | . . . . . Flight . | . . . . . Utility 11 | . 2 4 . 5 Device 7 | . 1 4 . 2 Storage 1 | . 1 . . . Processor 1 | . . . . 1 Hackware . | . . . . . Protection 2 | . . . . 2 Artifact . | . . . . . Weapon 23 | . 4 10 1 8 Energy Gun 2 | . 1 . . 1 Energy Cannon 7 | . 1 6 . . Ballistic Gun 8 | . 1 3 1 3 Ballistic Cannon 1 | . . . . 1 Launcher 3 | . 1 1 . 1 Special Weapon 1 | . . . . 1 Impact Weapon . | . . . . . Slashing Weapon 1 | . . . . 1 Piercing Weapon . | . . . . . Special Melee Weapon . | . . . . . Unidentified Prototypes 1 | . 1 . . . Corrupted Parts 2 | . . 2 . . System Corruption 9 | . . 9 . . Parts Lost 22 | . . 13 1 8 Power 4 | . . 2 1 1 Propulsion 5 | . . 3 . 2 Utility 3 | . . 3 . . Weapon 10 | . . 5 . 5 Highest Loss Streak 5 | . . 3 1 5 To Critical Strikes . | . . . . . Average Backups 17 | . 8 15 19 19 Power 1 | . 1 . 2 1 Propulsion 2 | . 3 1 1 2 Utility 4 | . . 3 5 5 Weapon 7 | . 3 8 7 6 Tool/Special . | . . . . . Unused Backups 20 | . 3 . 1 16 Power . | . . . . . Propulsion 4 | . 2 . . 2 Utility 9 | . . . 1 8 Weapon 4 | . 1 . . 3 Tool/Special 3 | . . . . 3 Average Slot Usage (%) 97 | . 85 96 87 99 Engine 12 | . 14 12 2 13 Treads 2 | . 20 3 . . Wheel 12 | . . 12 14 13 Device 9 | . . 12 14 7 Storage 13 | . 14 13 14 14 Protection 3 | . . . . 6 Energy Gun 3 | . 9 . . 6 Energy Cannon 17 | . 4 20 27 15 Ballistic Gun 17 | . 14 16 13 18 Peak Build Rating 31 | . 20 29 25 31 Average Rating 22 | . 6 21 22 23 On Entrance 15 | 6 6 20 24 22 Avg Prop Armor Cover (%) 11 | . . 11 . . Naked Turns 1 | . . . . 1 Heaviest Build 73 | 13 51 59 51 73 Greatest Support 40 | 20 40 40 20 16 Greatest Overweight (x) 7 | . 1 5 2 7 Average Overweight (x) 2 | . . 2 2 3 Largest Inventory Capacity 20 | . 20 20 20 20 Average Capacity 19 | . 11 20 20 19 Most Carried 20 | . 13 20 20 20 Average Carried 17 | . 8 15 19 19 Final Capacity 20 | 8 20 20 20 5 Final Carried 20 | 6 13 20 20 5 Class Distribution -------------------- 57% | Gunner 23% | Tank 17% | Mutant Dominant Class ---------------- Mutant | -10/Materials Gunner | -10/Subcaves Gunner | -9/Recycling Gunner | -9/Scraptown Resources | -11 -10 -10 -9 -9 ----------- Run | Yrd Mat Sub Rec Scr Matter Collected 1988 | 200 53 1362 233 140 Remotely . | . . . . . Salvage Created 1867 | . 79 1144 285 359 Parts 112 | . 19 70 11 12 Haulers Intercepted . | . . . . . Recyclers Shooed 4 | . 1 . 3 . Parts Field Recycled . | . . . . . Retrieved Matter . | . . . . . Parts Self-Destructed 49 | . . 49 . . Prevented . | . . . . . Parts Restored . | . . . . . Kills | -11 -10 -10 -9 -9 ------- Run | Yrd Mat Sub Rec Scr Combat Hostiles Destroyed 57 | . 7 43 1 6 Melee 2 | . . . . 2 Guns 15 | . 1 11 . 3 Cannons 22 | . . 20 1 1 AOE 18 | . 6 12 . . Classes Destroyed 12 | . 3 4 1 4 Builder 1 | . 1 . . . Recycler 3 | . . . 3 . Turret 2 | . . 2 . . Swarmer 24 | . 6 18 . . Grunt 14 | . 1 13 . . Sentry 2 | . . 1 1 . Artisan 1 | . . 1 . . Subdweller 11 | . . 11 . . Bolteater 3 | . . . . 3 Federalist 1 | . . . . 1 Explorer 1 | . . . . 1 Scrapper 1 | . . . . 1 Best Kill Streak 8 | . 8 6 2 3 Combat Bots Only 7 | . 7 6 1 3 Max Kills in Single Turn 4 | . 3 4 1 1 Gunslinging . | . . . . . Exploded 4 | . 3 4 . . Melee 1 | . . . . 1 Uniques/NPCs Destroyed 1 | . . . . 1 Triborg (-9/Scraptown) Combat | -11 -10 -10 -9 -9 -------- Run | Yrd Mat Sub Rec Scr Hostile Shots Fired 341 | . 12 204 4 121 Missed 91 | . 4 54 1 32 Hits 250 | . 8 150 3 89 Melee 59 | . . . . 59 Projectile 191 | . 8 150 3 30 Critical Strikes 5 | . . 2 1 2 Damage Taken 3337 | . 102 2224 40 971 Core 836 | . 30 531 . 275 Absorbed by Shields . | . . . . . Regen/Repaired (Parts) 608 | . . . . 608 Core Remaining (%) 100 | 100 . . . . Volleys Fired 158 | . 7 123 11 17 Largest 5 | . 2 5 3 3 Hottest 153 | . 80 153 140 97 Shots Fired 334 | . 11 254 32 37 Gun 140 | . 7 99 11 23 Cannon 168 | . 1 138 21 8 Launcher 26 | . 3 17 . 6 Special . | . . . . . Kinetic 155 | . 4 109 11 31 Thermal 163 | . 4 138 21 . Explosive 10 | . 3 7 . . Electromagnetic 6 | . . . . 6 Robot Hit Streak 15 | . 4 15 6 7 Robot Miss Streak 5 | . 3 4 4 5 Penetration Max . | . . . . . Secondary Targets . | . . . . . Shots Hit Robots 168 | . 4 128 15 21 Core Hits 104 | . 10 67 5 22 Critical Kills 1 | . . 1 . . Critical Parts Destroyed 1 | . . 1 . . Critical Strikes 2 | . . 2 . . Destroy 2 | . . 2 . . Melee Attacks 3 | . . . . 3 Impact . | . . . . . Slashing 3 | . . . . 3 Piercing . | . . . . . Sneak Attacks . | . . . . . Combat Hostiles . | . . . . . Follow-up Attacks . | . . . . . Damage Inflicted 4517 | . 296 3173 193 855 Guns 989 | . 38 654 38 259 Cannons 1679 | . 18 1446 155 60 Explosions 1787 | . 240 1073 . 474 Melee 62 | . . . . 62 Ramming . | . . . . . Kinetic 1663 | . 26 1280 38 319 Thermal 1657 | . 30 1446 155 26 Explosive 687 | . 240 447 . . Electromagnetic 448 | . . . . 448 Impact . | . . . . . Slashing 62 | . . . . 62 Piercing . | . . . . . Highest Corruption 27 | . . 27 13 2 Average Corruption 15 | . . 16 13 1 Corruption Purged . | . . . . . Corruption Blocked . | . . . . . Effects 64 | . . 49 15 . Message Errors 17 | . . 14 3 . Matter Fused 17 | . . 12 5 . Heat Flow Errors 6 | . . 6 . . Energy Discharges 3 | . . 2 1 . Parts Rejected 1 | . . 1 . . Parts Fused 1 | . . . 1 . Data Loss (minor) 7 | . . 6 1 . Data Loss (major) 4 | . . 4 . . Misfires 1 | . . . 1 . Alerts 1 | . . . 1 . Weapon Failures 6 | . . 4 2 . Overload Shots . | . . . . . Overflow Damage 115 | . . 69 . 46 Projectiles . | . . . . . Explosions 82 | . . 69 . 13 Melee 33 | . . . . 33 Knockbacks 1 | . . . . 1 Impact . | . . . . . Kinetic 1 | . . . . 1 Secondary . | . . . . . Self-Inflicted Damage 236 | . 34 112 . 90 Shots 13 | . 2 5 . 6 Rammed . | . . . . . Targets Rammed . | . . . . . Kicked . | . . . . . Crushed . | . . . . . Highest Temperature 378 | . 39 378 205 300 Average Temperature 93 | . 19 81 84 142 Received Heat Transfer 730 | . 12 444 36 238 Effects 2 | . . 2 . . Energy Bleed 2 | . . 2 . . Siege Activations . | . . . . . Martial Activations . | . . . . . Shielding Activations . | . . . . . Robots Disrupted . | . . . . . Combat Hostiles . | . . . . . Robots Corrupted . | . . . . . Combat Hostiles . | . . . . . Parts Fried . | . . . . . Impact Corruptions . | . . . . . Robots Melted . | . . . . . Combat Hostiles . | . . . . . Parts Melted 4 | . . 4 . . Heat Transferred 3540 | . 74 3071 333 62 Parts Sabotaged . | . . . . . Parts Stolen 1 | . . . . 1 Parts Stripped . | . . . . . Power Chain Reactions 2 | . . . . 2 Alert | -11 -10 -10 -9 -9 ------- Run | Yrd Mat Sub Rec Scr Maximum Alert Level . | . . . . . Low Security (%) 100 | . 100 . 100 . Level 1 . | . . . . . Level 2 . | . . . . . Level 3 . | . . . . . Level 4 . | . . . . . Level 5 . | . . . . . High Security . | . . . . . Max Security . | . . . . . Peak Influence 192 | . 192 . 50 . Initial 35 | . . . 35 . Average 49 | . 83 . 17 . Influence Increases 983 | . 202 715 66 . Destroy 0b10 Robot/C 840 | . 140 680 20 . Destroy 0b10 Robot/NC 20 | . 5 . 15 . Destroy Leader 40 | . 30 10 . . Allied During Kill 10 | . . 10 . . Select Force Hacks 30 | . . . 30 . Disable Machine 15 | . 15 . . . Destroy Structure 13 | . 12 . 1 . Lose Combat Pursuer 15 | . . 15 . . Influence Decreases 983 | . 60 783 140 . Entered New Map 108 | . . 69 39 . Time Decay 705 | . 60 554 91 . Lost Part 130 | . . 120 10 . Lost Ally 40 | . . 40 . . Squads Dispatched 2 | . 1 . 1 . Investigation 1 | . . . 1 . Extermination . | . . . . . Reinforcement 1 | . 1 . . . Assault . | . . . . . Garrison . | . . . . . Intercept . | . . . . . Searches Triggered . | . . . . . Construction Impeded . | . . . . . Haulers Reinforced . | . . . . . Active Scanning Responses . | . . . . . Cargo Convoy Interrupts . | . . . . . Stealth | -11 -10 -10 -9 -9 --------- Run | Yrd Mat Sub Rec Scr Distress Signals . | . . . . . Communications Jammed . | . . . . . Distress Signals . | . . . . . Times Spotted 90 | . 10 48 1 31 Peak Tracking Total 13 | . 5 5 . 13 Tactical Retreats 2 | . . 1 . 1 Traps | -11 -10 -10 -9 -9 ------- Run | Yrd Mat Sub Rec Scr Traps Triggered 3 | . . 3 . . Indirectly . | . . . . . Trap Hack Attempts . | . . . . . Triggered . | . . . . . Disarmed . | . . . . . Reprogrammed . | . . . . . Reused . | . . . . . Traps Extracted . | . . . . . Installed . | . . . . . Triggered . | . . . . . Most Traps Carried 3 | . . 3 . . Machines | -11 -10 -10 -9 -9 ---------- Run | Yrd Mat Sub Rec Scr Machines Disabled 5 | . 1 1 . 3 Max in Single Turn 1 | . 1 1 . 1 Machines Repaired . | . . . . . Machines Dismantled . | . . . . . Machines Sabotaged . | . . . . . Overloaded Fab Kills . | . . . . . Hacking | -11 -10 -10 -9 -9 --------- Run | Yrd Mat Sub Rec Scr Machines Accessed 4 | . . 1 1 2 Terminals . | . . . . . Fabricators . | . . . . . Repair Stations . | . . . . . Recycling Units 1 | . . . 1 . Scanalyzers . | . . . . . Garrison Access . | . . . . . Total Hacks 6 | . . 1 1 4 Successful 6 | . . 1 1 4 Failed . | . . . . . Catastrophic . | . . . . . Database Lockouts . | . . . . . Manual 3 | . 1 . 2 . Terminals . | . . . . . Fabricators . | . . . . . Repair Stations . | . . . . . Recycling Units 1 | . . . 1 . Scanalyzers . | . . . . . Garrison Access . | . . . . . Terminal Hacks 5 | . . 1 . 4 Record 3 | . . . . 3 Proto ID Catalog 2 | . . 1 . 1 Fabricator Hacks . | . . . . . Repair Station Hacks . | . . . . . Recycling Unit Hacks . | . . . . . Scanalyzer . | . . . . . Garrison Access Hacks . | . . . . . Unauthorized Hacks 1 | . . . 1 . Terminals . | . . . . . Fabricators . | . . . . . Repair Stations . | . . . . . Recycling Units 1 | . . . 1 . Tunnel 1 | . . . 1 . Scanalyzers . | . . . . . Garrison Access . | . . . . . Data Cores Recovered . | . . . . . Used . | . . . . . Hacking Detections . | . . . . . Full Trace Events . | . . . . . Feedback Events . | . . . . . Feedback Blocked . | . . . . . Robot Schematics Acquired . | . . . . . Robots Built . | . . . . . Authchips . | . . . . . Time . | . . . . . Total Robot Build Rating . | . . . . . Part Schematics Acquired . | . . . . . Parts Built . | . . . . . Authchips . | . . . . . Time . | . . . . . Total Part Build Rating . | . . . . . Part Studies Acquired . | . . . . . Parts Repaired . | . . . . . Time . | . . . . . Parts Recycled . | . . . . . Recycled Matter . | . . . . . Retrieved Matter . | . . . . . Retrieved Components . | . . . . . Parts Scanalyzed . | . . . . . Part Schematics Acquired . | . . . . . Parts Damaged . | . . . . . Bothacking | -11 -10 -10 -9 -9 ------------ Run | Yrd Mat Sub Rec Scr Used RIF Installer . | . . . . . Robots Hacked . | . . . . . Non-combat . | . . . . . Combat . | . . . . . Robot Hacks Applied . | . . . . . Relay Couplers Released . | . . . . . Fabnet Peak Effective % . | . . . . . Robots Rewired . | . . . . . Allies Hacked . | . . . . . Hacks Repelled . | . . . . . Allies | -11 -10 -10 -9 -9 -------- Run | Yrd Mat Sub Rec Scr Total Allies 3 | . . 2 . 1 Largest Group 2 | . . 2 . 1 Highest-Rated Group 464 | . . 16 . 464 Highest-Rated Ally 464 | . . 8 . 464 Total Orders . | . . . . . Ally Attacks 71 | . . 8 . 63 Total Damage 3496 | . . 62 . 3434 Kills 22 | . . . . 22 Allies Corrupted . | . . . . . Allies Melted . | . . . . . X0-1V1 Amusement Gains 129 | . 9 45 . 75 Average Entertainment 7 | . 9 6 15 17 Good Acts 39 | . . 37 1 1 Bad Acts 64 | . . 62 2 . Intel | -11 -10 -10 -9 -9 ------- Run | Yrd Mat Sub Rec Scr Active Infowar (turns) 155 | . . 155 . . Optics 155 | . . 155 . . Robot Analysis Total . | . . . . . Derelict Logs Recovered 6 | . . 1 . 5 Drone Launches . | . . . . . Drone Recoveries . | . . . . . Exploration | -11 -10 -10 -9 -9 ------------- Run | Yrd Mat Sub Rec Scr Turns Passed 6451 | . 253 2677 267 3254 Spaces Moved 3841 | 1 129 1420 172 2119 Core 3 | . . . . 3 Treads 149 | . 81 68 . . Legs 54 | 1 48 5 . . Wheels 3635 | . . 1347 172 2116 Hover . | . . . . . Flight . | . . . . . Fastest Speed 50 | 120 120 130 130 50 Average Speed 146 | 120 161 142 130 148 Slowest Speed 470 | 120 240 470 130 185 Overloaded Moves . | . . . . . Propulsion Burnouts . | . . . . . Robots Hopped . | . . . . . Potential Cave-ins 10 | . . 10 . . Cave-ins Triggered 1 | . . 1 . . Exploration Rate (%) 38 | 2 30 51 23 88 Regions Visited 4 Branch Regions 3 Pre-discovered Areas 4 | . . 1 1 2 Known Exits Taken 1 | . . 1 . . Unknown Exits Taken 3 | 1 1 . 1 . Scrap Searched 6 | . . 1 . 5 Spaces Dug 2 | . . 2 . . Terrain Destroyed 180 | . 10 164 . 6 Melee . | . . . . . Projectile 9 | . . 3 . 6 AOE 171 | . 10 161 . . Terrain Rammed . | . . . . . Walls Destroyed . | . . . . . Machines Disabled . | . . . . . Actions | -11 -10 -10 -9 -9 --------- Run | Yrd Mat Sub Rec Scr Total 4392 | . 160 1843 192 2197 Wait 240 | . 1 237 . 2 Move 3836 | . 128 1418 171 2119 Hop . | . . . . . Pick Up 48 | . 10 19 4 15 Fast Attach 16 | . 2 8 . 6 Attach 20 | . . 12 1 7 Detach 5 | . . 2 . 3 Swap 38 | . 8 19 3 8 Drop 27 | . 4 4 2 17 Fire 158 | . 7 123 11 17 Melee 3 | . . . . 3 Ram . | . . . . . Kick . | . . . . . Crush . | . . . . . Escape Stasis 1 | . . 1 . . Rewire . | . . . . . Trap . | . . . . . Miscellaneous . | . . . . . Route ------- -11/Scrapyard -10/Materials -10/Subcaves (discovered 2 exits: Mat / *Rec) -9/Recycling -9/Scraptown (discovered 1 exit: [*Fac]) History --------- Turn | Location | Event 1 | -11/Scrapyard | Discovered new exit (range 0) 1 | -11/Scrapyard | Entered Materials 163 | -10/Materials | Destroyed 7 combat bots 236 | -10/Materials | Discovered new exit (range 6) 245 | -10/Materials | Prayed at D.C.S.S. Altar Unit 254 | -10/Materials | Entered Subcaves 255 | -10/Subcaves | Approached by a straggling Scientist 277 | -10/Subcaves | Learned location of Zion (-7) 303 | -10/Subcaves | Build established: Mutant 409 | -10/Subcaves | Ambushed by angry Subdweller bent on revenge 453 | -10/Subcaves | X0-1V1 whisked you away to safety 660 | -10/Subcaves | Core integrity permanently improved by X0-1V1 (+350) 711 | -10/Subcaves | X0-1V1 sent hostile G-34 Mercenary (x3) 777 | -10/Subcaves | Visited 4L-MR0's lab 810 | -10/Subcaves | X0-1V1 caused items to flee you 824 | -10/Subcaves | Identified exit to Materials 824 | -10/Subcaves | X0-1V1 revealed exit location to -8/Materials 837 | -10/Subcaves | X0-1V1 sent you into danger 848 | -10/Subcaves | X0-1V1 tapped a No Entrance sign 850 | -10/Subcaves | X0-1V1 activates XOMVISION 874 | -10/Subcaves | Core integrity restored by X0-1V1 (+96) 954 | -10/Subcaves | X0-1V1 sent you into danger 961 | -10/Subcaves | X0-1V1 sent hostile S-10 Pest (x5) 963 | -10/Subcaves | X0-1V1 sent allied G-34 Mercenary (x2) 971 | -10/Subcaves | Identified exit to Recycling 971 | -10/Subcaves | X0-1V1 revealed exit location to -9/Recycling 982 | -10/Subcaves | X0-1V1 rewrote G-34 Mercenary IFF filter 985 | -10/Subcaves | X0-1V1 whisked you away to safety 996 | -10/Subcaves | Items stopped fleeing you 1002 | -10/Subcaves | X0-1V1 mutated your Propulsion slot to Weapon slot 1023 | -10/Subcaves | X0-1V1 sent you into danger 1060 | -10/Subcaves | System corruption reached 10% 1076 | -10/Subcaves | Lost 3 parts (1p1u1w) 1290 | -10/Subcaves | X0-1V1 sent you into danger 1387 | -10/Subcaves | X0-1V1 activates XOMVISION 1476 | -10/Subcaves | Ambushed by Subdweller buried in earth 1515 | -10/Subcaves | Build established: Gunner 1587 | -10/Subcaves | Core integrity restored by X0-1V1 (+138) 1645 | -10/Subcaves | X0-1V1 sent hostile G-34 Mercenary (x3) 1650 | -10/Subcaves | Weapon slot count temporarily expanded by X0-1V1 (+2) 1679 | -10/Subcaves | X0-1V1 activates XOMVISION 1684 | -10/Subcaves | X0-1V1 sent you into danger 1699 | -10/Subcaves | X0-1V1 sent hostile G-34 Mercenary (x4) 1885 | -10/Subcaves | Found Meta Core 2114 | -10/Subcaves | A swath of the cavern ceiling suddenly collapsed 2114 | -10/Subcaves | Weapon slot count reverted to normal (-2) 2540 | -10/Subcaves | X0-1V1 activates XOMVISION 2553 | -10/Subcaves | X0-1V1 sent hostile G-34 Mercenary (x3) 2610 | -10/Subcaves | X0-1V1 sent hostile S-10 Pest (x5) 2666 | -10/Subcaves | Ambushed by Subdweller buried in earth 2818 | -10/Subcaves | Crushed by falling debris 2819 | -10/Subcaves | Core integrity fell below 50% 2931 | -10/Subcaves | Entered Recycling 3020 | -9/Recycling | Energy generation permanently improved by X0-1V1 (+15; -150 max core) 3168 | -9/Recycling | Scanned before Scraplab entrance 3186 | -9/Recycling | Entered Scraplab 3197 | -9/Recycling | Discovered new exit (range 2) 3198 | -9/Recycling | Entered Scraptown 3198 | -9/Scraptown | System corruption cleaned by C-Scrubber 3460 | -9/Scraptown | Scanned Subdweller tech in exchange for log data 3463 | -9/Scraptown | Learned location of 1 exit from Factory 3464 | -9/Scraptown | Learned Factory emergency access door positions 3467 | -9/Scraptown | Learned 8 Research zone layouts 3468 | -9/Scraptown | Learned location of Armory (-3) 3470 | -9/Scraptown | Learned location of Extension (-6) 3477 | -9/Scraptown | Heard Great Nut preacher, LISTEN AND RECITE! 3542 | -9/Scraptown | Visited Junk Repository 3566 | -9/Scraptown | Visited Junk Repository 3606 | -9/Scraptown | Visited UFD Registry 3606 | -9/Scraptown | Registered with UFD as "Matterbot" 3635 | -9/Scraptown | Visited Infowarlord's Domain 3655 | -9/Scraptown | Visited Abandonware Association 3671 | -9/Scraptown | Learned abandonware demo "TRNCOAT.EXE" 3708 | -9/Scraptown | Visited Science Guys 3751 | -9/Scraptown | Visited Curators Association 3799 | -9/Scraptown | Visited Scrapoid Pod Storage 3821 | -9/Scraptown | Visited Scrapoid Research Area 3834 | -9/Scraptown | Visited Botcube Research 3857 | -9/Scraptown | Visited Derelict Rescue Squad 3880 | -9/Scraptown | Visited LU-1G1's Boring Crew 3905 | -9/Scraptown | Visited Observation Area 4002 | -9/Scraptown | Visited Symbiants 4022 | -9/Scraptown | Visited CR-KLE's Repair Center 4043 | -9/Scraptown | Visited The Evicted 4412 | -9/Scraptown | Visited Shadow of the Wyrm 5010 | -9/Scraptown | Discovered new exit (range 13) 5054 | -9/Scraptown | Guru changed UFD alias to "Novacase" 5220 | -9/Scraptown | Build established: Tank 5424 | -9/Scraptown | Found Lrg. Botcube 6079 | -9/Scraptown | CR-KLE repaired 6 parts 6184 | -9/Scraptown | Found Exp. Sensor Array 6373 | -9/Scraptown | X0-1V1 brought Wyrm Statue to life 6373 | -9/Scraptown | Attacked by Scraptown defenders 6421 | -9/Scraptown | Lost 3 parts (1p1n1w) 6451 | -9/Scraptown | Core integrity fell below 20% 6451 | -9/Scraptown | Released all parts (4) 6452 | -9/Scraptown | Destroyed by CB-1BF(j) with Overtuned Pulse Rifle Last Messages --------------- 06440_ Destroyed Wheel. 06440_ Destroyed Ripteeth. 06440_ 7A-2BM(r) destroyed. 06441_ IT-XH4(r) follow-up attacks with Ripteeth. 06441_ Slug penetrates Chaos Wyrm. 06445_ IT-XH4(r) follow-up attacks with Ripteeth. 06445_ 1L-FO4(x) destroyed. 06446_ CPS Tube destroyed. 06446_ Slug penetrates Chaos Wyrm. 06446_ Chaos Wyrm destroyed. 06446_ Destroyed Wheel. 06446_ A3-L27(r) destroyed. 06447_ Scythe destroyed. 06451_ Released Sub. Machine Gun. 06451_ Released Hcp. Storage Unit. 06451_ Released Rnf. Ion Engine. 06451_ Released Disposable Heat Sink. 06452_ X0-1V1 laughs nastily! Map ----- +----------------------------------------------------+ | #???????#" | | " # #???????#" | | " " # ################# #????####" | | ?# #? ?????????# #????"""" | | "?# # |" "|?????????# #???#"""" | | ??# # |" "|"????????# #???#"""" | | """"??# |"|"|"????????# #???#"""" | | ###???# # " " "????????# #???#"""" | | ??????# #######?????????# ###?#"""" | | ??????# #???????????????# ""#"#"""" | | ??????# #???????????????# """"#"""" | | ####### #???????????????# ""#######" | | """ # #???????????????# ###?????#" | | """ # #???????????????# #########" | | """ #???????????????# p | | """ # #???????????????# | | "" # #???????????????; E | | # #??##????????###; = | | """ # ####;;########;#; !%= | | """ # !! | | """ # | | """ # ! ![ | | """ # / !%[ !%= | | ####### j =/ ! = | | # !%= %[[= % #""""#" | | ! j !%%=%%@! *! = #????#" | | # j =!=*% /%=%! #????#""" | | ###### ;=% %=%!##### ####????#### | | #?????? # #= [|r[[/#??# #??????????? | | # #?????? # %[%=%![!#??# #??????????? | | # #????? ## %=!!*#??# #??????????? | | # #???"" ""## [% %! #??# #??????????? | | # #??#"" ""### % #??# #??????????? | | # #??#"" ""## = #??# #??????????? | | # #??#"" " " ""?## =%##??# #??????????? | | # #???"""""X""""""??## *#???# #??????????? | | # #???""""""""""""???########???# #??????????? | | # #??????########???????????????# #??????????? | | # #?????????????????????????????# #??????????? | | # #??????????????????############ #??????????? | | # #??????????????????#""""""""""" #????????### | | # #??????????????????#""""" """"" #???????? | | ##???????????#######"""" " "" #????????""" | | #???????????# #????????""" | | ##???###??#### #####"" "" "" " #???????"""" | | ## ##???"""""?#""" "#??#""""""""""" #???????"""" | | ????????"" ""?#""" "#??#""""""""""" #???????"""" | | #####???"" "?#""" "#??############ #????# | | """"#??#" ""##"" "#?############# #????####### | | "#??#"" ""##"" "#?#"""""""""""# #??????????? | +----------------------------------------------------+ Best States ------------- Heat Dissipation 25 Coolant Potential 50 Energy Generation 27 Energy Capacity 1250 Matter Stores 681 Matter Capacity 800 Sight Range 22 Terrain Scan Density 10 Armor Coverage 225 Evasion (%) 55 Recoil Reduction 2 Item Schematics ----------------- None Robot Schematics ------------------ None Fabricated ------------ Nothing Repaired ---------- Nothing Studied --------- None Alien Tech Used ----------------- None Achievements -------------- Longdome?! Low-level Research Challenges ------------ None Game ------ Seed AntisysTransportStick Manual? 0 Play Time 00:38:58 Cumulative 543.0 hours Start 2026.09.15 @ 15:41:43 End 2026.09.15 @ 17:05:20 Sessions 1 Manual Loads 0 Difficulty Rogue Special Mode None Game No. 209 Rogue 209 Adventurer 0 Explorer 0 Win Type - Total 22 Types 5/0/11/0/1/0/2/1/1/1 Lore% 83 Gallery% 86 Achievement% 79 Wizard Run 0 Options --------- Layout 1 ASCII 0 Keyboard 1 Movement Arrows Keybinds 0 Fullscreen 1 Font 24/Smallcaps Map View 50x35 Zoom Use 0% Tactical HUD 1 Map Filters NONE Filters NONE Steam 1 RUN: c90035b2-933a-4192-bb67-9ecc835e166a